bitfinex-derivatives/quotes_ETHF0:USTF0_20250217
["timestamp","ask_amount","ask_price","bid_price","bid_amount"]
[1739831965605,1.72695,2751.8,2751.3,0.5642]
[1739831965606,0.58139,2751.6,2751.3,0.58145]
[1739831965912,2.432,2751.5,2751.3,0.58145]
[1739831966209,3.01343,2751.5,2751.2,3.21324484]
[1739831966407,0.58144,2751.4,2751.2,3.21324484]
[1739831966711,1.12256,2751.3,2751.2,3.21324484]
[1739831967002,1.12256,2751.3,2751.2,0.00544484]
[1739831967204,4.88746,2751.3,2751.2,0.00544484]
[1739831967905,0.58157,2750.8,2750.4,0.58164]
[1739831968108,3.11313605,2750.5,2749.8,3.2078]
[1739831968308,3.11313605,2750.5,2748.4,1.27295759]
[1739831968309,3.11313605,2750.2,2749.7,0.5743]
[1739831968509,3.11313605,2749.9,2749.4,3.2078]
[1739831968710,3.04077,2749.8,2749.4,3.2078]
[1739831969105,3.11313605,2749.6,2749.3,0.57975484]
[1739831969309,3.2078,2749.5,2748.4,3.2078]
[1739831969507,3.11313605,2749.0,2748.4,3.2078]
[1739831969708,2.461,2748.9,2748.5,0.58203]
[1739831969910,3.11313605,2749.0,2748.4,3.2078]
[1739831970110,3.2078,2749.1,2748.4,3.2078]
[1739831970317,0.5411,2749.4,2748.4,3.2078]
[1739831970318,2.461,2749.0,2748.4,3.2078]
[1739831970509,2.46,2749.1,2748.5,0.00545484]
[1739831970814,3.2078,2749.4,2748.7,3.2078]
[1739831971110,2.461,2749.3,2749.0,0.58193]
[1739831971314,5.57413605,2749.3,2748.8,0.5432]
[1739831971917,5.57413605,2749.3,2748.8,1.12518]
[1739831972510,5.57413605,2749.3,2748.8,0.5432]
[1739831972706,5.57413605,2749.3,2748.8,1.12518]
[1739831972902,5.57413605,2749.3,2748.8,0.5432]
[1739831973106,5.57413605,2749.3,2748.8,1.12517]
[1739831973303,5.57413605,2749.3,2748.8,0.5432]
[1739831973517,3.11313605,2749.0,2748.5,0.00545484]
[1739831973706,2.457,2748.9,2748.5,0.00545484]
[1739831976015,2.457,2748.9,2748.5,0.58750484]
[1739831976213,2.457,2748.9,2748.5,0.00545484]
[1739831976611,3.03897,2748.9,2748.5,0.00545484]
[1739831976807,2.457,2748.9,2748.5,0.00545484]
[1739831977107,2.457,2748.9,2748.5,0.58749484]
[1739831977303,2.454,2749.1,2749.0,0.58194]
[1739831977707,2.455,2749.2,2749.1,0.5819]
[1739831978213,3.2078,2749.4,2748.9,1.1178]
[1739831978413,2.454,2749.3,2749.1,0.5819]
[1739831978715,2.454,2749.3,2749.0,0.5636]
[1739831978907,2.454,2749.3,2749.2,0.5819]
[1739831979316,2.453,2749.3,2749.2,0.5819]
[1739831980111,2.453,2749.3,2749.0,0.5636]
[1739831980112,3.2078,2749.4,2749.3,0.58188]
[1739831980315,5.6598,2749.4,2749.3,0.58188]
[1739831980514,5.6598,2749.4,2749.1,0.5819]
[1739831981015,5.6598,2749.4,2749.2,0.58189]
[1739831981217,5.6598,2749.4,2749.0,0.5636]
[1739831981508,5.6598,2749.4,2749.3,0.58188]
[1739831983312,5.6598,2749.4,2748.8,3.2078]
[1739831983513,5.6598,2749.4,2749.2,0.5819]
[1739831983709,5.6598,2749.4,2749.2,0.58188]
[1739831984410,5.6598,2749.4,2749.3,0.58188]
[1739831984616,5.6598,2749.4,2748.9,1.0727]
[1739831985014,5.6598,2749.4,2749.3,0.58188]
[1739831986217,5.6598,2749.4,2748.9,1.0727]
[1739831986413,5.6598,2749.4,2749.2,0.5819]
[1739831986725,5.6598,2749.4,2749.2,0.58189]
[1739831987314,6.24167,2749.4,2749.1,0.58191]
[1739831987615,3.11313605,2749.3,2749.1,0.58191]
[1739831988612,3.11313605,2749.3,2749.2,0.5819]
[1739831988812,3.11313605,2749.3,2748.9,1.0727]
[1739831989715,3.11313605,2749.3,2749.2,0.5819]
[1739831990618,5.55013605,2749.3,2749.2,0.5819]
[1739831990920,2.437,2749.3,2749.2,0.5819]
[1739831993610,3.11313605,2749.6,2749.1,0.00144004]
[1739831993822,3.11313605,2749.6,2749.5,0.58184]
[1739831995018,3.11313605,2749.6,2749.5,1.12314]
[1739831996226,3.11313605,2749.8,2749.7,0.58179]
[1739831996723,5.54313605,2749.8,2749.7,0.58179]
[1739831997120,5.54513605,2749.8,2749.7,0.58179]
[1739831998520,0.00545484,2749.9,2749.8,0.58177]
[1739832000519,3.2078,2750.4,2749.7,3.2078]
[1739832000726,3.2078,2750.4,2749.5,1.99587]
[1739832000727,3.7869,2750.4,2749.5,0.5413]
[1739832000921,3.11313605,2750.2,2749.6,3.2078]
[1739832001227,3.11313605,2750.2,2750.1,0.58171]
[1739832002627,3.11313605,2750.2,2749.6,3.2078]
[1739832002825,3.2078,2750.1,2749.5,3.7491]
[1739832003024,3.2078,2750.1,2749.1,0.00144004]
[1739832003025,3.11313605,2749.9,2749.1,0.00144004]
[1739832003227,7.36038,2749.8,2749.1,0.00144004]
[1739832003423,3.11313605,2749.6,2749.5,0.58183]
[1739832005131,3.11313605,2749.6,2749.1,0.55234004]
[1739832005435,3.11313605,2749.6,2749.1,0.00144004]
[1739832005736,3.11313605,2749.6,2749.2,0.5819]
[1739832005931,3.69497605,2749.6,2749.2,0.58188]
[1739832006133,3.69497605,2749.6,2749.3,0.58188]
[1739832006432,3.11313605,2749.6,2749.3,0.58188]
[1739832007232,3.69495605,2749.6,2749.3,0.58188]
[1739832007535,3.11313605,2749.6,2749.1,0.00144004]
[1739832007733,3.11313605,2749.6,2749.4,0.58185]
[1739832007928,3.11313605,2749.6,2749.1,0.00144004]
[1739832008136,3.11313605,2749.6,2749.4,0.58184]
[1739832008329,3.11313605,2749.6,2749.1,0.00144004]
[1739832008529,3.11313605,2749.6,2749.5,0.58184]
[1739832008838,1.1343,2749.8,2749.7,0.58179]
[1739832009034,2.9952,2749.8,2749.7,0.58179]
[1739832009539,2.427,2749.8,2749.7,0.58179]
[1739832009736,2.428,2750.2,2750.1,0.58171]
[1739832010639,6.32639089,2750.4,2750.3,0.58167]
[1739832010935,8.75439089,2750.4,2750.3,0.58167]
[1739832012235,6.32639089,2750.4,2750.3,0.58167]
[1739832012438,0.00545484,2750.4,2750.3,0.58167]
[1739832016236,4.84e-06,2750.4,2750.3,0.58167]
[1739832017636,4.84e-06,2750.4,2750.3,6.58167]
[1739832017834,4.84e-06,2750.4,2750.3,0.58167]
[1739832018435,3.11313605,2751.0,2750.1,5.6318]
[1739832018641,2.424,2751.1,2751.0,0.58152]
[1739832018843,3.11313605,2751.3,2750.7,1.45396]
[1739832019141,3.11313605,2751.3,2751.2,0.58148]
[1739832019350,5.53713605,2751.3,2751.2,0.58148]
[1739832021140,3.11313605,2751.3,2751.2,0.58148]
[1739832022438,2.424,2751.4,2750.8,2.54447]
[1739832022639,2.424,2751.4,2751.3,0.58146]
[1739832024237,2.424,2751.4,2751.0,3.2078]
[1739832024437,2.424,2751.4,2751.3,0.58146]
[1739832027545,2.99865484,2751.5,2751.4,0.58143]
[1739832027845,2.99865484,2751.5,2751.3,0.58144]
[1739832028349,0.5729,2751.4,2751.3,0.58144]
[1739832029043,0.5729,2751.4,2751.3,0.58146]
[1739832029647,0.5729,2751.4,2750.9,3.2078]
[1739832029846,1.67874,2751.4,2751.2,0.58147]
[1739832030050,1.67874,2751.4,2751.3,0.58146]
[1739832030942,1.0973,2751.4,2751.3,0.58146]
[1739832031751,0.5729,2751.4,2751.3,0.58146]
[1739832032251,2.42845484,2751.5,2751.4,0.58143]
[1739832033951,0.00545484,2751.5,2751.4,0.58143]
[1739832037952,0.00545484,2751.5,2751.4,1.12893]
[1739832043057,2.423,2752.1,2752.0,0.58131]
[1739832045066,7.41619089,2752.3,2752.2,0.58127]
[1739832045362,9.83919089,2752.3,2752.2,0.58127]
[1739832046470,9.29809089,2752.3,2752.2,0.58127]
[1739832047271,8.74939089,2752.3,2752.2,0.58127]
[1739832047873,6.32639089,2752.3,2752.2,0.58127]
[1739832049364,6.90739089,2752.3,2752.2,0.58127]
[1739832051175,0.00545484,2752.3,2752.2,0.58127]
[1739832061187,3.69985089,2752.3,2751.9,0.5525]
[1739832061482,2.9578,2752.2,2752.1,0.58129]
[1739832061782,2.9578,2752.2,2752.0,0.58129]
[1739832061983,2.9578,2752.2,2752.0,0.58131]
[1739832062179,0.5565,2752.1,2752.0,0.58131]
[1739832064880,2.9578,2752.2,2752.1,0.58129]
[1739832066788,2.422,2752.2,2752.1,0.58129]
[1739832067085,2.42745484,2752.3,2752.2,0.58126]
[1739832067279,3.00871484,2752.3,2751.9,0.5763]
[1739832067492,3.00871484,2752.3,2752.1,0.58128]
[1739832067877,3.00871484,2752.3,2752.1,0.58127]
[1739832068482,3.00871484,2752.3,2751.9,0.5763]
[1739832068681,3.00871484,2752.3,2752.2,0.58126]
[1739832069387,6.21651484,2752.3,2752.2,0.58126]
[1739832069587,5.63525484,2752.3,2752.2,0.58126]
[1739832071582,6.21649484,2752.3,2752.2,0.58126]
[1739832072386,5.63525484,2752.3,2752.2,0.58126]
[1739832073987,6.21649484,2752.3,2752.2,0.58126]
[1739832076495,5.63525484,2752.3,2752.2,0.58126]
[1739832076695,6.21649484,2752.3,2752.2,0.58126]
[1739832076990,3.21325484,2752.3,2752.2,0.58126]
[1739832087802,0.00545484,2752.3,2752.2,0.58126]
[1739832091496,0.00545484,2752.3,2752.1,1.951115]
[1739832091497,5.183335,2753.0,2752.8,0.58114]
[1739832091699,2.421,2752.9,2752.8,0.58114]
[1739832092201,3.00212,2752.9,2752.8,0.58114]
[1739832092600,2.421,2752.9,2752.8,0.58114]
[1739832095202,4.602215,2753.0,2752.4,5.80753]
[1739832095403,4.602215,2753.0,2752.9,0.58112]
[1739832099612,1.394415,2753.0,2752.9,1.15922]
[1739832102711,0.55205301,2753.1,2753.0,0.5811]
[1739832104012,0.00545301,2753.1,2753.0,0.5811]
[1739832111020,0.00545301,2753.1,2753.0,3.7889]
[1739832113023,0.00545301,2753.1,2752.8,0.5346]
[1739832113024,0.00545301,2753.1,2752.3,3.2078]
[1739832113326,0.00545301,2753.1,2752.5,0.5812]
[1739832113327,1.975565,2752.8,2752.5,0.5812]
[1739832113617,3.4892,2752.7,2752.5,0.5812]
[1739832113816,4.0597,2752.7,2752.5,0.5812]
[1739832114726,4.0597,2752.7,2752.6,0.58118]
[1739832115419,7.2675,2752.7,2752.6,0.58118]
[1739832118129,4.0597,2752.7,2752.6,0.58118]
[1739832121923,2.42,2752.9,2752.4,4.66083]
[1739832122127,2.42,2752.9,2752.8,0.58112]
[1739832122330,0.00545301,2753.1,2753.0,0.5811]
[1739832123429,0.00545301,2753.1,2752.7,1.0808]
[1739832123731,0.5811,2753.0,2752.8,0.58113]
[1739832124330,4.35763301,2753.1,2752.9,0.58112]
[1739832125133,4.35763301,2753.1,2752.7,0.5464]
[1739832125333,3.77655301,2753.1,2752.4,3.2078]
[1739832125533,0.58119,2752.6,2752.4,0.58122]
[1739832125733,1.6355,2752.5,2752.4,0.58122]
[1739832126628,1.6355,2752.5,2752.3,0.58123]
[1739832126828,2.2167,2752.5,2751.9,3.12542]
[1739832127128,0.58127,2752.2,2751.9,1.1413]
[1739832127328,0.58127,2752.2,2751.9,1.72261]
[1739832127529,3.00027,2752.2,2751.9,0.58131]
[1739832127732,0.58129,2752.1,2751.8,0.58679484]
[1739832127928,0.58129,2752.1,2751.9,0.58133]
[1739832128529,0.58129,2752.1,2751.8,0.00545484]
[1739832128727,8.74261635,2752.2,2751.8,0.00545484]
[1739832128938,1.11682,2752.0,2751.8,0.00545484]
[1739832131232,0.5355,2752.0,2751.8,0.00545484]
[1739832131540,1.11682,2752.0,2751.8,0.00545484]
[1739832135037,1.11682,2752.0,2751.8,0.58680484]
[1739832135631,0.5355,2752.0,2751.8,0.00545484]
[1739832135831,0.58133,2751.9,2751.8,0.00545484]
[1739832137937,1.11653,2751.9,2751.8,0.00545484]
[1739832153755,0.5352,2751.9,2751.1,3.2078]
[1739832153949,0.5352,2751.9,2749.9,2.90872]
[1739832153950,0.5815,2751.1,2750.7,1.39503336]
[1739832154154,0.58153,2751.0,2750.8,0.58154]
[1739832154358,0.58153,2751.0,2750.9,0.58154]
[1739832154551,3.00051,2751.1,2750.9,0.58154]
[1739832156459,3.00051,2751.1,2751.0,0.5777]
[1739832158059,2.419,2751.1,2751.0,0.5777]
[1739832158665,3.0005,2751.1,2751.0,0.5777]
[1739832159963,2.419,2751.1,2751.0,0.5777]
[1739832160765,2.419,2751.1,2751.0,1.15922]
[1739832166971,0.58148,2751.2,2751.0,0.5777]
[1739832167269,0.00545484,2751.3,2751.1,1.65338]
[1739832167470,2.419,2751.2,2751.1,1.65338]
[1739832167770,3.00048,2751.2,2751.1,1.65338]
[1739832168072,2.419,2751.2,2751.1,1.65338]
[1739832168269,3.00048,2751.2,2751.1,1.65338]
[1739832168766,0.58148,2751.2,2751.1,1.6534]
[1739832168972,3.00048,2751.2,2751.1,1.6534]
[1739832170266,2.419,2751.2,2751.1,1.6534]
[1739832170474,3.00048,2751.2,2751.1,1.6534]
[1739832170864,3.00048,2751.2,2751.1,1.0719]
[1739832171064,3.00048,2751.2,2751.1,1.6534]
[1739832173072,2.419,2751.2,2751.1,1.6534]
[1739832173273,3.00048,2751.2,2751.1,1.6534]
[1739832175368,4.39551336,2751.2,2751.1,1.0719]
[1739832176977,4.39551336,2751.2,2751.1,1.6534]
[1739832177177,4.39551336,2751.2,2751.1,1.0719]
[1739832177372,3.81403336,2751.2,2751.1,1.6534]
[1739832178979,4.39551336,2751.2,2751.1,1.6534]
[1739832180277,4.39551336,2751.2,2751.1,1.0719]
[1739832180477,4.39551336,2751.2,2751.1,1.6534]
[1739832181477,4.39551336,2751.2,2751.1,1.0719]
[1739832181781,4.39551336,2751.2,2751.1,1.6534]
[1739832182080,4.39551336,2751.2,2751.1,1.0719]
[1739832183178,2.419,2751.2,2751.1,1.65338]
[1739832183480,3.00048,2751.2,2751.1,1.65338]
[1739832191184,2.99948,2751.2,2751.1,0.533]
[1739832191380,2.99948,2751.2,2751.1,1.1145]
[1739832191982,0.58148,2751.2,2751.1,1.1145]
[1739832192185,2.99948,2751.2,2751.1,1.1145]
[1739832192580,2.99948,2751.2,2751.1,0.533]
[1739832193991,2.99948,2751.2,2751.1,1.1145]
[1739832208091,2.99948,2751.2,2751.1,0.533]
[1739832208288,2.99948,2751.2,2751.1,1.1145]
[1739832221109,2.42245484,2751.3,2751.1,0.533]
[1739832221415,3.00392484,2751.3,2751.2,0.58148]
[1739832221709,2.42245484,2751.3,2751.2,0.58148]
[1739832222313,3.00391484,2751.3,2751.2,0.58148]
[1739832223210,2.42245484,2751.3,2751.1,0.533]
[1739832223513,0.58148,2751.2,2751.1,1.11448]
[1739832227810,2.416,2751.2,2750.7,0.00545484]
[1739832228017,1.7055,2751.1,2750.7,0.00545484]
[1739832228214,0.58154,2750.9,2750.7,0.58702484]
[1739832228715,0.58154,2750.9,2750.7,0.00545484]
[1739832228910,0.58154,2750.9,2750.8,0.58156]
[1739832230416,1.39503336,2750.9,2750.7,0.00545484]
[1739832230612,2.99756,2750.8,2750.7,0.00545484]
[1739832230812,2.99756,2750.8,2749.6,3.2078]
[1739832230813,5.6238,2750.8,2749.6,3.2078]
[1739832231016,0.58171,2750.1,2750.0,0.5735]
[1739832231213,2.416,2750.1,2749.7,0.5427]
[1739832231409,1.39503336,2749.9,2749.7,0.5427]
[1739832232006,0.58177,2749.8,2749.7,0.5427]
[1739832232213,0.58179,2749.7,2749.6,3.2078]
[1739832232418,2.99779,2749.7,2749.6,3.2078]
[1739832232621,2.99779,2749.7,2749.5,0.00545484]
[1739832233321,4.39282336,2749.7,2749.5,0.00545484]
[1739832233519,3.78962,2749.6,2749.5,0.00545484]
[1739832233719,3.2078,2749.6,2749.5,0.00545484]
[1739832234420,4.60283336,2749.6,2749.5,0.00545484]
[1739832234616,3.2078,2749.6,2749.5,0.00545484]
[1739832234814,2.416,2749.7,2749.5,0.00545484]
[1739832235016,2.9978,2749.7,2749.5,0.00545484]
[1739832235215,1.39503336,2749.5,2748.8,3.2078]
[1739832235420,1.39503336,2749.0,2748.8,3.2078]
[1739832235718,2.416,2748.9,2748.8,3.2078]
[1739832236116,2.416,2748.9,2748.6,0.5529]
[1739832236310,2.416,2748.9,2748.6,1.14037484]
[1739832238317,2.416,2748.9,2748.6,0.55835484]
[1739832238519,2.416,2748.9,2748.7,1.1596]
[1739832239222,2.416,2748.9,2748.7,0.5776]
[1739832240217,2.99797,2748.9,2748.7,0.5776]
[1739832240414,3.2078,2749.3,2748.7,0.5776]
[1739832240619,3.2078,2749.3,2748.9,0.58196]
[1739832240816,2.417,2749.2,2748.9,0.58196]
[1739832241015,3.2078,2749.3,2749.0,1.39503336]
[1739832241219,2.417,2749.6,2749.4,0.58186]
[1739832241427,2.417,2749.6,2749.5,1.14374]
[1739832241924,3.2078,2749.8,2749.7,0.58179]
[1739832242129,2.417,2749.8,2749.7,0.58179]
[1739832244030,2.99879,2749.8,2749.5,0.5619]
[1739832244231,2.417,2749.8,2749.1,3.7686]
[1739832244447,3.69013134,2749.7,2749.1,3.7686]
[1739832244725,0.58191,2749.2,2748.9,1.14856]
[1739832244921,2.99891,2749.2,2748.9,1.14856]
[1739832247230,2.417,2749.2,2748.9,0.5666]
[1739832247525,2.417,2749.2,2749.1,0.58192]
[1739832247729,2.417,2749.4,2749.3,0.58188]
[1739832249126,0.58182,2749.6,2749.4,0.58186]
[1739832249331,2.417,2749.5,2749.4,0.58186]
[1739832250032,1.15011,2749.7,2749.4,0.58186]
[1739832250227,3.21325484,2749.9,2749.6,0.58182]
[1739832250428,2.417,2749.8,2749.7,0.58179]
[1739832251724,3.21325484,2749.9,2749.5,0.5567]
[1739832251926,3.21325484,2749.9,2749.8,0.58177]
[1739832264639,3.79500484,2749.9,2749.8,0.58177]
[1739832270951,0.58178,2749.8,2749.7,0.58178]
[1739832271344,3.21325484,2749.9,2749.5,0.5567]
[1739832271547,3.12183134,2749.8,2749.5,0.58182]
[1739832271746,0.5738,2749.7,2749.5,0.58182]
[1739832271946,0.58184,2749.5,2749.3,3.78967]
[1739832272350,2.99784,2749.5,2749.3,0.58187]
[1739832272543,1.1306,2749.4,2749.3,0.58187]
[1739832277649,1.1306,2749.4,2749.0,5.23703]
[1739832277650,0.58183,2749.6,2749.5,0.58184]
[1739832277951,2.416,2749.6,2749.5,0.58184]
[1739832280756,2.99782,2749.6,2749.5,0.58184]
[1739832281054,2.416,2749.6,2749.5,0.58184]
[1739832284662,3.81351267,2749.6,2749.5,0.58184]
[1739832293370,3.81225517,2749.6,2749.5,0.58184]
[1739832303777,2.4147425,2749.6,2749.5,0.58184]
[1739832313080,4.39429267,2749.8,2749.7,0.58179]
[1739832314683,3.81251267,2749.8,2749.4,0.5639]
[1739832314882,4.39430267,2749.8,2749.7,0.58179]
[1739832315985,1.97930267,2749.8,2749.7,0.58179]
[1739832316285,4.39430267,2749.8,2749.7,0.58179]
[1739832317281,0.58179,2749.8,2749.7,0.58179]
[1739832317581,2.99679,2749.8,2749.7,0.58179]
[1739832318774,0.58179,2749.8,2749.7,0.58179]
[1739832319785,1.97930267,2749.8,2749.7,0.58179]
[1739832320484,0.58179,2749.8,2749.7,0.58179]
[1739832323086,0.5818,2749.7,2749.6,0.5818]
[1739832323287,0.5818,2749.7,2749.6,0.58181]
[1739832323792,1.1476,2749.7,2749.6,0.58181]
[1739832327993,0.58179,2749.8,2749.7,0.58178]
[1739832332496,2.41945484,2749.9,2749.8,0.58177]
[1739832333398,0.00545484,2749.9,2749.8,0.58177]
[1739832336399,0.00545484,2749.9,2749.8,1.69217]
[1739832346302,0.00545484,2749.9,2749.8,4.89997]
[1739832347703,0.00545484,2749.9,2749.8,5.48127]
[1739832370718,0.00545484,2749.9,2749.8,2.27347]
[1739832370915,0.00545484,2749.9,2749.8,5.48127]
[1739832371714,3.2078,2750.7,2750.6,0.5816]
[1739832371920,0.5694,2750.9,2750.4,1.39751267]
[1739832372210,0.5435,2750.8,2750.7,0.58157]
[1739832372418,1.1218,2750.8,2750.7,0.58157]
[1739832372614,1.1218,2750.8,2750.5,0.5789]
[1739832372820,1.1218,2750.8,2750.7,0.58158]
[1739832376519,0.5694,2750.9,2750.8,0.58156]
[1739832376718,0.5694,2750.9,2750.8,1.97907267]
[1739832377018,0.58435484,2751.0,2750.9,0.58154]
[1739832378619,0.58435484,2751.0,2750.9,1.11314]
[1739832379110,0.00545484,2751.0,2750.9,4.32094]
[1739832379519,0.00545484,2751.0,2750.9,4.86934]
[1739832379822,0.00545484,2751.0,2750.9,5.44104]
[1739832386526,1.116,2751.4,2751.3,0.58146]
[1739832386825,1.116,2751.4,2751.3,1.97897267]
[1739832387325,1.116,2751.4,2751.3,2.55437267]
[1739832389933,0.54,2751.4,2751.3,2.55437267]
[1739832391340,0.00545484,2751.6,2751.5,0.58141]
[1739832391539,0.00545484,2751.6,2751.5,1.97892267]
[1739832394242,0.00545484,2751.6,2751.5,5.18672267]
[1739832401262,0.5293,2752.0,2751.9,0.58133]
[1739832401451,0.5293,2752.0,2751.9,1.97884267]
[1739832407558,1.1423,2752.1,2752.0,0.58131]
[1739832408452,0.00545301,2752.2,2751.9,1.39751267]
[1739832408652,0.00545301,2752.2,2752.1,0.58129]
[1739832409249,0.00545301,2752.2,2751.9,1.39751267]
[1739832409558,0.00545301,2752.2,2752.1,1.97880267]
[1739832411059,5.80082849,2753.0,2752.6,0.58117]
[1739832411262,0.5646,2752.8,2752.6,0.58117]
[1739832411455,1.14575,2752.8,2752.6,0.58117]
[1739832412051,0.58116,2752.7,2752.6,0.58117]
[1739832412450,1.11216,2752.7,2752.6,0.58117]
[1739832414654,0.531,2752.7,2752.6,0.58117]
[1739832417667,0.531,2752.7,2752.6,1.10787]
[1739832419468,0.5646,2752.8,2752.7,0.58116]
[1739832419857,3.78891,2753.0,2752.8,0.58112]
[1739832420267,0.5576,2752.9,2752.8,0.58112]
[1739832421969,3.7889,2753.0,2752.9,0.58112]
[1739832422163,3.2078,2753.0,2752.9,0.58112]
[1739832422368,3.7889,2753.0,2752.9,0.58112]
[1739832422771,3.2078,2753.0,2752.9,0.58112]
[1739832423071,3.7889,2753.0,2752.9,0.58112]
[1739832423265,3.2078,2753.0,2752.9,0.58112]
[1739832423466,3.2078,2753.0,2752.9,1.97863267]
[1739832426566,4.8195,2753.3,2752.9,1.39751267]
[1739832426871,5.40054,2753.3,2753.2,0.58105]
[1739832427070,4.8195,2753.3,2753.2,0.58105]
[1739832427976,3.2078,2753.3,2753.2,0.58105]
[1739832431673,3.78874,2753.8,2753.5,0.58098]
[1739832431980,3.78874,2753.8,2753.6,0.5563]
[1739832432172,0.58095,2753.7,2753.6,0.5563]
[1739832432475,3.78873,2753.8,2753.6,1.13727]
[1739832432678,3.78873,2753.8,2753.6,2.23477]
[1739832432873,3.2078,2753.8,2753.6,2.23475]
[1739832433174,3.2078,2753.8,2753.7,0.58095]
[1739832433574,3.2078,2753.8,2753.7,1.97846267]
[1739832439674,4.8752,2754.1,2753.7,1.39751267]
[1739832439880,4.8752,2754.1,2754.0,0.58089]
[1739832440269,4.8752,2754.1,2754.0,1.13269]
[1739832440983,5.45606,2754.1,2754.0,1.13269]
[1739832441186,3.2078,2754.1,2754.0,1.13269]
[1739832441377,3.2078,2754.1,2754.0,2.21209]
[1739832443084,3.2078,2754.1,2754.0,2.2103863]
[1739832446278,4.34601,2754.4,2754.3,0.58082]
[1739832446985,3.7652,2754.4,2754.3,0.58082]
[1739832449784,4.346,2754.4,2754.3,0.58082]
[1739832450385,3.7652,2754.4,2754.3,0.58082]
[1739832451990,3.2078,2754.4,2754.3,0.58082]
[1739832455490,4.89288,2754.5,2754.4,0.5808]
[1739832455686,4.89288,2754.5,2754.4,1.97831267]
[1739832458288,4.3121,2754.5,2754.4,1.97831267]
[1739832459285,3.7501,2754.5,2754.4,1.97831267]
[1739832460884,3.2078,2754.5,2754.4,1.97831267]
[1739832462588,0.5778,2754.6,2754.5,0.58078]
[1739832469296,0.5567,2754.8,2754.7,0.58074]
[1739832469501,1.1251,2754.8,2754.7,0.58074]
[1739832476890,1.70582,2754.8,2754.7,0.58074]
[1739832477089,1.1251,2754.8,2754.7,0.58074]
[1739832477490,1.1251,2754.8,2754.7,1.14304]
[1739832477693,1.14791,2754.9,2754.8,0.58072]
[1739832478901,4.35571,2754.9,2754.8,0.58072]
[1739832481907,4.35571,2754.9,2754.8,1.97823267]
[1739832492928,3.775,2754.9,2754.8,1.97823267]
[1739832493124,3.7885,2754.9,2754.8,2.50623267]
[1739832497832,3.2078,2754.9,2754.8,2.50623267]
[1739832499036,3.7885,2754.9,2754.8,2.50623267]
[1739832500038,3.7885,2754.9,2754.8,2.95758392]
[1739832500738,3.2078,2754.9,2754.8,2.95758392]
[1739832500937,3.7885,2754.9,2754.8,2.95758392]
[1739832501939,1.0818,2755.0,2754.8,2.95758392]
[1739832502139,0.5807,2754.9,2754.8,2.95758392]
[1739832502340,0.5807,2754.9,2754.8,3.50266455]
[1739832503829,0.5807,2754.9,2754.8,2.95758392]
[1739832504039,0.5807,2754.9,2754.8,3.50265599]
[1739832505341,8.09121267,2755.2,2754.8,3.50265599]
[1739832505536,0.58067,2755.0,2754.9,0.54507207]
[1739832505737,0.58067,2755.0,2754.9,0.99642332]
[1739832507235,0.58067,2755.0,2754.9,1.57712332]
[1739832509437,0.58067,2755.0,2754.9,1.57706407]
[1739832510041,0.58067,2755.0,2754.9,1.57706326]
[1739832510542,0.58067,2755.0,2754.9,1.57705337]
[1739832512038,0.58067,2755.0,2754.9,1.57704749]
[1739832514141,0.58067,2755.0,2754.9,1.57702531]
[1739832514934,3.2078,2755.1,2754.9,1.57702531]
[1739832515140,3.78845,2755.1,2755.0,0.54497406]
[1739832515445,3.78845,2755.1,2755.0,0.99632531]
[1739832518142,3.78845,2755.1,2755.0,0.99630905]
[1739832518343,3.2078,2755.1,2755.0,0.99630905]
[1739832518549,3.78845,2755.1,2755.0,1.57697905]
[1739832520141,3.78845,2755.1,2755.0,1.57695786]
[1739832522445,3.2078,2755.1,2755.0,1.57695786]
[1739832523049,3.2078,2755.1,2755.0,2.97447053]
[1739832524050,3.78845,2755.1,2755.0,2.97447053]
[1739832524247,3.78845,2755.1,2755.0,2.97445539]
[1739832526338,3.78845,2755.1,2755.0,2.52312197]
[1739832526538,3.78845,2755.1,2755.0,2.97432592]
[1739832526738,3.78845,2755.1,2755.0,2.97432609]
[1739832531754,3.78845,2755.1,2755.0,2.42938662]
[1739832531942,3.78845,2755.1,2755.0,2.97439228]
[1739832532555,3.78845,2755.1,2755.0,2.97440068]
[1739832534645,3.78845,2755.1,2755.0,2.97441036]
[1739832535053,3.78845,2755.1,2755.0,2.97440951]
[1739832539752,3.2078,2755.1,2755.0,2.97440951]
[1739832540357,0.58065,2755.1,2755.0,2.97440951]
[1739832540552,3.7763,2755.2,2755.0,2.39373951]
[1739832540759,4.35694,2755.2,2755.1,0.54502289]
[1739832540950,4.35694,2755.2,2755.1,1.08392289]
[1739832542655,4.35694,2755.2,2755.1,1.08394319]
[1739832542856,4.35694,2755.2,2755.1,1.53523185]
[1739832543059,3.78844,2755.2,2755.1,1.53523185]
[1739832543960,3.78844,2755.2,2755.1,1.08394319]
[1739832544159,3.78844,2755.2,2755.1,1.08394101]
[1739832546058,3.78844,2755.2,2755.1,1.08393902]
[1739832546360,3.78844,2755.2,2755.1,1.53522278]
[1739832546955,3.78844,2755.2,2755.1,1.08393902]
[1739832548155,3.78844,2755.2,2755.1,1.08396073]
[1739832548359,3.78844,2755.2,2755.1,1.66461073]
[1739832549263,3.2078,2755.2,2755.1,1.08396073]
[1739832549462,3.2078,2755.2,2755.1,1.53526315]
[1739832550164,3.78843,2755.2,2755.1,1.53526315]
[1739832550660,3.78843,2755.2,2755.1,1.53524997]
[1739832551164,3.78843,2755.2,2755.1,1.08394755]
[1739832552058,3.78843,2755.2,2755.1,1.5352371]
[1739832553066,3.78843,2755.2,2755.1,1.08394755]
[1739832553663,0.58063,2755.2,2755.1,0.54504755]
[1739832554265,0.58063,2755.2,2755.1,0.54504976]
[1739832556265,0.58063,2755.2,2755.1,0.99633109]
[1739832558362,0.58063,2755.2,2755.1,0.99632783]